[Event "44th Chess Olympiad Open 2022"]
[Site "Chennai"]
[Date "2022.08.02"]
[Round "5.9"]
[White "Bok, Benjamin"]
[Black "Preotu, Razvan"]
[Result "1-0"]
[WhiteElo "2616"]
[BlackElo "2445"]
[Annotator "TA"]
[PlyCount "121"]
[EventDate "2022.??.??"]
[TimeControl "60"]

{[%evp 12,121,0,0,0,0,41,-4,-2,-12,-13,0,-10,0,0,0,-6,-19,38,25,18,0,0,0,0,0,0,
0,0,0,24,22,22,21,20,20,18,16,15,15,14,17,14,14,18,14,14,14,14,14,14,14,14,14,
14,14,14,14,14,14,14,14,14,14,14,14,14,14,14,14,14,0,0,0,14,14,113,113,118,117,
121,121,121,14,129,129,129,129,129,0,129,0,129,128,137,116,116,0,137,137,239,
192,1532,1510,1475,1428,1398,1366,1297,912,516,363]} 1. Nf3 {[%emt 0:00:04]}
Nf6 {[%emt 0:00:10][%cal Yg8f6,Yf6d5,Yd5b4,Yb4d3]} 2. c4 {[%emt 0:00:00]} c5 {
[%emt 0:00:09]} 3. Nc3 {[%emt 0:00:17]} d5 {[%emt 0:00:14]} 4. cxd5 {[%emt 0:
00:18]} Nxd5 {[%emt 0:00:10]} 5. e4 {[%emt 0:03:40]} Nb4 {[%emt 0:00:00]} 6.
Bc4 {[%emt 0:00:06]} Nd3+ {[%emt 0:00:15]} 7. Ke2 {[%emt 0:00:07]} Nf4+ {
[%emt 0:00:20] A34: Symmetrical English: 2 Nc3, lines with ...d5.} 8. Kf1 {
[%emt 0:00:05] aiming for d4.} Ne6 {[%emt 0:00:31] Against d4} 9. h4 {[%emt 0:
00:00]} (9. b4 $5 {[%cal Rb4c5]}) 9... Nd4 {[%emt 0:06:16] The position is
equal.} 10. Nb5 {[%emt 0:03:56]} Ndc6 {[%emt 0:10:41]} 11. d4 {[%emt 0:01:01]}
a6 {[%emt 0:03:16]} 12. d5 $1 {[%emt 0:00:19]} axb5 {[%emt 0:08:46]} 13. Bxb5 {
[%emt 0:01:54] Pin} e6 {[%emt 0:10:13]} 14. Qe2 {[%emt 0:05:54] [#]} exd5 $146
{[%emt 0:12:21]} (14... Be7 $1 $11 15. dxc6 Nxc6) ({Predecessor:} 14... Be7 15.
dxc6 Nxc6 16. Rh3 O-O 17. Rg3 Bxh4 18. Nxh4 Qxh4 19. Rh3 Qf6 20. Qh5 h6 {
½-½ (40) So,W (2770)-Vachier Lagrave,M (2760) Bucharest 2021}) 15. exd5+ $14
{[%emt 0:00:15] Pin} Be7 {[%emt 0:00:06]} 16. Bg5 {[%emt 0:00:00] Black must
now prevent Rd1.} O-O {[%emt 0:00:46] ...Bxg5 is the strong threat.} 17. dxc6 {
[%emt 0:03:00]} Nxc6 {[%emt 0:00:14]} 18. Bxc6 {[%emt 0:00:00]} Bxg5 {[%emt 0:
00:14]} 19. hxg5 {[%emt 0:00:12]} bxc6 {[%emt 0:00:06]} 20. Qc2 {[%emt 0:00:07]
[%csl Gh1,Yc5,Yh7][%cal Rc2h7]} Ba6+ {[%emt 0:03:21]} 21. Kg1 {[%emt 0:01:41]
[%csl Gh1][%cal Rc2h7]} Bd3 {[%emt 0:00:12]} 22. Qxc5 {[%emt 0:00:11]} Be4 $1 {
[%emt 0:00:09]} 23. Rh3 {[%emt 0:00:36]} (23. b4 {feels hotter.} f6 24. Rh3
fxg5 25. Nxg5 Bd5 26. Nxh7 Rf4 27. Qe3) 23... Qd5 {[%emt 0:13:35]} 24. Qxd5 {
[%emt 0:11:01]} (24. Qe3 {seems wilder.} Bxf3 25. Qxf3 Rxa2 26. Rxa2 Qxa2 27.
Qe4) 24... Bxd5 {[%emt 0:00:09]} 25. Nd4 {[%emt 0:00:00]} Rfb8 {[%emt 0:02:03]}
26. b3 {[%emt 0:00:32]} c5 {[%emt 0:03:48]} 27. Nc2 {[%emt 0:00:12]} Be4 {
[%emt 0:03:47]} 28. Ne1 {[%emt 0:10:01]} Bd5 {[%emt 0:00:16]} 29. Rd1 {[%emt 0:
00:50]} Be6 {[%emt 0:00:09]} 30. Rc3 {[%emt 0:00:00]} Rxa2 {[%emt 0:00:36]} 31.
Nd3 {[%emt 0:00:14]} h6 {[%emt 0:10:57]} (31... Bxb3 $2 32. Rxb3 $1 Rxb3 33.
Nc1 $18) (31... Rxb3 $2 32. Nc1 $1 (32. Nxc5 Rb8 $14) 32... Rb8 33. Nxa2 Bxa2
34. Rxc5 $18) 32. Nxc5 {[%emt 0:00:00]} hxg5 {[%emt 0:00:20]} 33. Nxe6 {
[%emt 0:02:11]} fxe6 $11 {[%emt 0:00:00] Endgame KRR-KRR} 34. Rd7 {[%emt 0:00:
36]} Kh7 {[%emt 0:00:30]} 35. Rcc7 {[%emt 0:03:41]} Rxb3 {[%emt 0:02:33]} 36.
Rxg7+ {[%emt 0:00:04]} Kh6 {[%emt 0:00:08]} 37. Rh7+ {[%emt 0:00:56]} Kg6 {
[%emt 0:00:09]} 38. Rcg7+ {[%emt 0:00:03]} Kf6 {[%emt 0:02:06]} 39. Rf7+ {
[%emt 0:00:33]} Kg6 $1 {[%emt 0:00:00]} 40. Rhg7+ {[%emt 0:01:28]} Kh6 $1 {
[%emt 0:00:07]} 41. Rh7+ {[%emt 0:00:00]} Kg6 {[%emt 0:30:47]} 42. Rhg7+ {
[%emt 0:00:17]} Kh6 $1 {[%emt 0:00:15]} 43. Rg8 {[%emt 0:00:11]} Rb5 {[%emt 0:
02:00]} (43... Rb1+ $11 {keeps the balance.} 44. Kh2 Rb5) 44. f3 $16 {[%emt 0:
00:00]} Re5 {[%emt 0:00:00]} 45. Rfg7 {[%emt 0:00:00]} Raa5 {[%emt 0:00:00]}
46. Kh2 {[%emt 0:00:00]} Rab5 {[%emt 0:00:00]} 47. Kg3 {[%emt 0:00:00] White
is more active.} ({White should try} 47. Rg6+ $16 Kh7 48. R8g7+ Kh8 49. Rg8+
Kh7 50. R8g7+ Kh8 51. Kg3) 47... Ra5 {[%emt 0:00:00] [#]} (47... Rb8 $1 $11 {
remains equal.}) 48. Rg6+ $1 {[%emt 0:00:00]} Kh7 {[%emt 0:00:00]} 49. R8g7+ {
[%emt 0:00:00]} Kh8 {[%emt 0:00:00]} 50. Rg8+ {[%emt 0:00:00]} Kh7 {[%emt 0:00:
00]} 51. R8g7+ {[%emt 0:00:00]} Kh8 {[%emt 0:00:00]} 52. Kh3 {[%emt 0:00:00]}
Rf5 {[%emt 0:00:00]} 53. Rg8+ {[%emt 0:00:00]} Kh7 {[%emt 0:00:00]} 54. R8g7+ {
[%emt 0:00:00]} Kh8 {[%emt 0:00:00]} 55. Re7 {[%emt 0:00:00]} Rae5 {[%emt 0:00:
00]} (55... Rfe5 $16 56. Rc7 (56. Rexe6 Rxe6 57. Rxe6 Kg7 $14) 56... Ra4) 56.
Rexe6 $18 {[%emt 0:00:00]} ({Resist} 56. Rgxe6 $6 g4+ 57. Kxg4 Rg5+ 58. Kh3
Rh5+ 59. Kg4 (59. Kg3 Reg5+ 60. Kf4 Rxg2 $16) 59... Reg5+ 60. Kf4 Rxg2 $16)
56... Rxe6 {[%emt 0:00:00]} (56... Kh7 57. Rh6+ Kg8) 57. Rxe6 {[%emt 0:00:02]
White is clearly winning.} Kg7 {[%emt 0:00:00]} 58. Kg4 {[%emt 0:00:04]} Ra5 {
[%emt 0:00:00] [#]} 59. Kh5 $1 {[%emt 0:00:45]} Kf7 {[%emt 0:00:00]} 60. Rg6 {
[%emt 0:00:40]} g4+ {[%emt 0:00:00]} 61. Rg5 {[%emt 0:00:16] Weighted Error
Value: White=0.14 (very precise) /Black=0.15 (very precise)} 1-0

[Event "44th Chess Olympiad Open 2022"]
[Site "Chennai"]
[Date "2022.08.02"]
[Round "5.9"]
[White "Panjwani, Raja"]
[Black "Van Foreest, Jorden"]
[Result "0-1"]
[WhiteElo "2450"]
[BlackElo "2678"]
[Annotator "TA"]
[PlyCount "80"]
[EventDate "2022.??.??"]
[TimeControl "60"]

{[%evp 11,80,20,31,5,23,13,37,29,33,22,10,0,0,0,0,0,0,-5,0,0,0,0,0,0,0,0,0,0,0,
-8,0,-22,-10,-20,-29,-18,-18,-16,-14,-20,-13,-43,-41,-53,-56,-142,-141,-133,
-122,-170,-168,-144,-110,-118,-118,-210,-196,-205,-210,-168,-204,-181,-178,
-164,-179,-1162,-614,-1162,-1143,-1089,-971]} 1. d4 {[%emt 0:00:04]} d5 {
[%emt 0:00:12]} 2. c4 {[%emt 0:00:07]} c6 {[%emt 0:00:15]} 3. Nf3 {[%emt 0:00:
00]} Nf6 {[%emt 0:00:15]} 4. e3 {[%emt 0:00:19]} Bf5 {[%emt 0:00:21]} 5. Nc3 {
[%emt 0:00:08]} e6 {[%emt 0:00:14]} 6. Nh4 {[%emt 0:00:08]} Bg6 {[%emt 0:00:17]
} 7. Be2 {[%emt 0:00:29] D12: Slav Defence: 3 Nf3 Nf6 4 e3 Bf5.} Nbd7 {[%emt 0:
00:00]} 8. O-O {[%emt 0:00:30]} Be7 {[%emt 0:01:12]} 9. g3 {[%emt 0:01:26]
White is slightly better.} a6 {[%emt 0:00:07]} 10. Bd2 {[%emt 0:06:41]} dxc4 {
[%emt 0:04:58] [#]} 11. Bxc4 $146 {[%emt 0:02:03]} ({Predecessor:} 11. Nxg6
hxg6 12. Bxc4 c5 13. Be2 O-O 14. Bf3 Rb8 15. Rc1 e5 16. Ne2 b5 17. dxc5 Bxc5 {
0-1 (41) Kourkoulos Arditis,S (2485)-Fedoseev,V (2696) Belgrade 2021}) 11...
Bh5 {[%emt 0:02:05]} 12. Be2 {[%emt 0:00:13]} Bxe2 {[%emt 0:00:47]} 13. Qxe2 {
[%emt 0:00:09]} c5 {[%emt 0:01:08]} 14. Nf3 {[%emt 0:02:41]} O-O {[%emt 0:00:
00]} 15. Rfd1 {[%emt 0:01:23]} b5 {[%emt 0:05:36]} 16. e4 {[%emt 0:05:18]} cxd4
{[%emt 0:05:47]} 17. Nxd4 {[%emt 0:00:34] Black must now prevent e5.} Qb6 {
[%emt 0:00:44]} 18. Be3 {[%emt 0:04:34][%cal Rd4b5]} Qb7 {[%emt 0:01:42]} 19.
f3 {[%emt 0:01:23]} Rac8 {[%emt 0:07:16]} 20. Rac1 {[%emt 0:16:10]} Ne5 {
[%emt 0:01:21]} 21. Nb1 {[%emt 0:16:28][%cal Yc3b1,Yb1d2,Yd2f1,Yf1h2]} h6 {
[%emt 0:09:41]} 22. Nd2 {[%emt 0:03:23]} Rfd8 {[%emt 0:01:55][%cal Yf8d8,Yd8c8,
Yc8c3]} 23. h3 {[%emt 0:10:06]} Bb4 {[%emt 0:02:42]} 24. Rxc8 {[%emt 0:04:25]}
Rxc8 {[%emt 0:03:46]} 25. Nf1 {[%emt 0:03:11]} Bc5 {[%emt 0:00:00]} 26. b3 {
[%emt 0:05:21]} Bb6 {[%emt 0:01:33]} 27. Nh2 {[%emt 0:06:14]} Rc3 {[%emt 0:00:
51][%cal Yc3e3]} 28. Bf2 {[%emt 0:00:18]} ({Better is} 28. Kg2 $1 $15) 28... h5
$1 $17 {[%emt 0:06:40][%cal Yh6h5,Yh5h4] Black is more active.} 29. Kg2 {
[%emt 0:00:18] [#]} h4 $1 {[%emt 0:02:24]} 30. Be1 {[%emt 0:00:00]} (30. Ng4
$17 {was called for.} Nfxg4 31. hxg4) 30... Rc8 {[%emt 0:00:00] aiming for ...
Ng6.} 31. Ng4 {[%emt 0:00:22]} Nfxg4 {[%emt 0:03:09]} 32. hxg4 {[%emt 0:00:05]}
Ng6 {[%emt 0:00:16]} 33. Nc2 {[%emt 0:01:51]} (33. Qb2 $17) 33... Bc7 $19 {
[%emt 0:02:33] ...hxg3 is the strong threat.} 34. Nb4 {[%emt 0:03:18]} ({
Don't go for} 34. Rd7 $2 {[#]} Bxg3 $1 35. Rxb7 Nf4+ 36. Kf1 Nxe2 $19) 34...
Bxg3 {[%emt 0:08:25]} 35. Bxg3 {[%emt 0:00:07]} hxg3 {[%emt 0:00:00]} 36. Kxg3
{[%emt 0:00:47]} Qe7 $36 {[%emt 0:01:44] ( -> ... Qh4+). Black is really
pushing.} 37. Nd3 {[%emt 0:01:47]} Rc3 {[%emt 0:01:37]} 38. Qe3 $2 {[%emt 0:01:
01]} (38. Kf2) 38... Qh4+ {[%emt 0:01:09] Black is clearly winning.} ({
Stronger than} 38... Rc2 39. Rd2 Qh4+ 40. Kg2 $17) 39. Kg2 {[%emt 0:00:04]} e5
{[%emt 0:00:06][%cal Yg6f4] Hoping for ...Nf4+!} 40. Kf1 {[%emt 0:03:14]} Nf4 {
[%emt 0:01:38] Weighted Error Value: White=0.30/Black=0.02 (flawless)} 0-1

[Event "44th Chess Olympiad Open 2022"]
[Site "Chennai"]
[Date "2022.08.02"]
[Round "5.9"]
[White "Samsonkin, Artiom"]
[Black "Warmerdam, Max"]
[Result "0-1"]
[WhiteElo "2434"]
[BlackElo "2610"]
[Annotator "TA"]
[PlyCount "78"]
[EventDate "2022.??.??"]
[TimeControl "60"]

{[%evp 9,78,0,0,-25,-32,-21,0,0,2,-3,12,-12,21,-14,-27,-62,-61,-33,-69,-76,-86,
-97,-93,-87,-94,-179,-186,-181,-153,-156,-143,-190,-182,-193,-188,-197,-156,
-456,-420,-439,-405,-405,-302,-347,-266,-300,-300,-393,-385,-366,-326,-390,
-339,-365,-343,-343,-338,-362,-359,-341,-328,-422,-420,-416,-390,-458,-455,
-488,-479,-455,-446]} 1. e4 {[%emt 0:00:10]} c5 {[%emt 0:00:12]} 2. Nf3 {
[%emt 0:01:00]} e6 {[%emt 0:00:29]} 3. Nc3 {[%emt 0:00:30]} Nc6 {[%emt 0:00:58]
} 4. Bb5 {[%emt 0:00:43]} Nd4 {[%emt 0:00:47]} 5. Bc4 {[%emt 0:01:17]} a6 {
[%emt 0:01:42]} 6. d3 {[%emt 0:03:01] B30: Sicilian: 2...Nc6 3 Bb5, lines
without ...g6.} b5 {[%emt 0:01:22]} 7. Bb3 {[%emt 0:00:05]} Nxf3+ $5 {[%emt 0:
00:00] A promising side line.} 8. Qxf3 {[%emt 0:00:10] The position is equal.}
Bb7 {[%emt 0:00:14]} 9. O-O {[%emt 0:05:10]} Nf6 {[%emt 0:13:28] [#]} 10. Qe2
$146 {[%emt 0:20:39]} ({Predecessor:} 10. Qg3 h5 11. Qh4 Be7 12. Bg5 Ng4 13.
Bxe7 Qxe7 14. Qg3 O-O 15. f3 Nh6 16. a4 {0-1 (25) Carrasco Martinez,J (2370)
-Anton Guijarro,D (2659) Linares 2021}) 10... Qc7 {[%emt 0:31:09]} 11. a4 {
[%emt 0:21:08]} c4 {[%emt 0:06:20]} 12. dxc4 {[%emt 0:07:22]} b4 {[%emt 0:00:
00]} 13. Nd5 {[%emt 0:00:39]} exd5 {[%emt 0:00:22]} 14. exd5+ {[%emt 0:00:44]}
Kd8 {[%emt 0:06:51]} 15. a5 {[%emt 0:04:45]} Bc5 {[%emt 0:01:47]} 16. Qf3 {
[%emt 0:13:53]} Qe5 {[%emt 0:05:45]} 17. Bf4 {[%emt 0:04:07] [#]} (17. Bd2 $17)
17... Qe4 $1 $19 {[%emt 0:00:51]} ({Inferior is} 17... Qxb2 18. Be3 Rc8 19.
Rae1 $15) 18. Qg3 {[%emt 0:02:30] aiming for Bc7+.} Qg6 {[%emt 0:00:17]} 19.
Qd3 {[%emt 0:02:47]} d6 {[%emt 0:06:31]} 20. Rfe1 {[%emt 0:02:03]} (20. Be3 $17
{might work better.}) 20... Bc8 {[%emt 0:01:03]} 21. Be3 {[%emt 0:02:02] Black
must now prevent Bxc5.} Bf5 {[%emt 0:03:46]} 22. Qd1 {[%emt 0:02:04]} Re8 {
[%emt 0:03:17][%cal Ye8e3] Hoping for ...Rxe3!} 23. Ba4 $2 {[%emt 0:01:06] [#]
Loses the game.} (23. Bxc5 $17 {was the only chance.} dxc5 24. Qd2) 23... Rxe3
$1 {[%emt 0:02:55]} 24. Rxe3 {[%emt 0:00:02]} Bxe3 {[%emt 0:00:07]} 25. fxe3 {
[%emt 0:00:04]} Qg4 {[%emt 0:01:20]} 26. Qf1 {[%emt 0:04:47]} Bd7 {[%emt 0:01:
51]} 27. Bxd7 {[%emt 0:00:17]} Kxd7 {[%emt 0:00:10][%cal Yd8d7,Yd7e7,Ye7f8]}
28. Ra4 {[%emt 0:00:36]} Rb8 {[%emt 0:00:04]} 29. b3 {[%emt 0:00:46]} Qe4 {
[%emt 0:00:22]} 30. Qf2 {[%emt 0:00:18]} Ke7 {[%emt 0:00:00]} 31. h3 {[%emt 0:
00:16]} Nd7 {[%emt 0:03:27]} 32. Ra1 {[%emt 0:00:31]} Kf8 {[%emt 0:00:48]} 33.
Rf1 {[%emt 0:00:24][%csl Gf1][%cal Rf2f7]} Nf6 {[%emt 0:00:00]} ({Wrong is} 
33... Ne5 $2 34. Kh2 $19) 34. Qd2 {[%emt 0:00:25]} Qe5 {[%emt 0:00:12]} 35. Rf4
{[%emt 0:00:57]} Ne4 {[%emt 0:01:48]} 36. Qd3 {[%emt 0:00:00]} Re8 {[%emt 0:00:
07]} 37. Rf3 {[%emt 0:00:21]} Ng5 {[%emt 0:00:18] Black is clearly winning.}
38. Rf5 {[%emt 0:00:07]} Qg3 {[%emt 0:00:06]} 39. e4 {[%emt 0:01:02]} Nxe4 {
[%emt 0:00:24] Weighted Error Value: White=0.38/Black=0.12 (very precise)} 0-1

[Event "44th Chess Olympiad Open 2022"]
[Site "Chennai"]
[Date "2022.08.02"]
[Round "5.10"]
[White "Bluebaum, Matthias"]
[Black "Borisek, Jure"]
[Result "1/2-1/2"]
[WhiteElo "2673"]
[BlackElo "2577"]
[Annotator "TA"]
[PlyCount "179"]
[EventDate "2022.??.??"]
[TimeControl "60"]

{[%evp 12,178,17,16,21,6,4,18,8,16,0,23,16,0,22,28,14,6,95,0,11,9,9,14,16,10,9,
13,10,9,14,0,7,-8,0,-3,0,-16,-29,-62,-68,-56,-63,-49,-63,-58,-59,-38,-40,-73,
-8,-8,-8,-8,-8,-8,0,0,0,0,8,8,45,0,0,0,0,0,7,7,7,0,8,8,8,8,8,0,8,8,8,8,8,0,72,
72,72,72,72,8,8,8,8,8,44,51,179,179,179,179,179,179,179,179,179,179,179,179,
179,179,179,179,179,179,179,179,179,179,179,179,179,179,179,179,179,179,179,
179,179,179,179,0,179,179,179,179,179,179,179,179,179,179,179,179,179,179,179,
179,179,0,179,179,179,179,179,0,0,0,0,0,0,0,0,0,0,0,0,0,0]} 1. d4 {[%emt 0:00:
00]} d5 {[%emt 0:00:09]} 2. c4 {[%emt 0:00:09]} dxc4 {[%emt 0:00:05]} 3. Nf3 {
[%emt 0:00:19]} Nf6 {[%emt 0:00:22]} 4. e3 {[%emt 0:00:09]} e6 {[%emt 0:00:28]}
5. Bxc4 {[%emt 0:00:09]} c5 {[%emt 0:00:15]} 6. O-O {[%emt 0:00:15]} Nc6 {
[%emt 0:00:05]} 7. Nc3 {[%emt 0:00:54]} a6 {[%emt 0:00:08]} 8. d5 {[%emt 0:00:
00]} Na5 {[%emt 0:00:52]} 9. b3 {[%emt 0:00:14]} b5 $1 {[%emt 0:00:09]} 10. Bd3
$1 {[%emt 0:00:06]} ({Reject} 10. dxe6 Qxd1 11. exf7+ Ke7 12. Rxd1 bxc4 $15)
10... Nxd5 {[%emt 0:00:29]} 11. Nxd5 {[%emt 0:00:37]} exd5 {[%emt 0:00:05]} 12.
Bb2 {[%emt 0:01:08]} Bg4 {[%emt 0:00:10]} 13. Re1 {[%emt 0:09:38]} Rc8 {
[%emt 0:24:19]} 14. Be2 {[%emt 0:09:30]} Nc6 {[%emt 0:11:09]} (14... c4 $11)
15. e4 {[%emt 0:17:00]} (15. a4 $16) 15... d4 {[%emt 0:11:22]} 16. Nxd4 $1 {
[%emt 0:02:53]} Bxe2 {[%emt 0:02:36]} 17. Nxe2 {[%emt 0:00:10]} Qxd1 {[%emt 0:
00:00]} 18. Rexd1 {[%emt 0:07:04]} f6 {[%emt 0:00:23]} 19. Nf4 {[%emt 0:03:03]}
Be7 {[%emt 0:00:57]} 20. Nd5 {[%emt 0:05:09]} Kf7 {[%emt 0:00:42]} 21. Ba3 {
[%emt 0:11:55]} Rhd8 {[%emt 0:06:46]} 22. Rac1 {[%emt 0:00:00]} b4 {[%emt 0:00:
00]} 23. Bb2 {[%emt 0:00:00]} Na5 {[%emt 0:00:46]} 24. Nxe7 {[%emt 0:11:59]}
Kxe7 {[%emt 0:02:39]} 25. e5 {[%emt 0:04:03]} c4 {[%emt 0:07:03]} 26. exf6+ {
[%emt 0:01:41]} gxf6 {[%emt 0:00:04]} 27. bxc4 $1 {[%emt 0:00:13]} Rxd1+ {
[%emt 0:06:47]} 28. Rxd1 {[%emt 0:00:01]} Nxc4 {[%emt 0:01:03]} 29. Bd4 {
[%emt 0:04:36]} a5 {[%emt 0:03:58]} 30. g4 {[%emt 0:02:36]} Kf7 {[%emt 0:00:57]
} (30... Ne5 $17 {...Rc2 is the strong threat.} 31. Bxe5 fxe5) 31. Rc1 $11 {
[%emt 0:01:07]} Rc6 {[%emt 0:01:42]} 32. f4 {[%emt 0:04:41]} Ke6 {[%emt 0:00:
00]} 33. Kf2 {[%emt 0:01:20]} Kd5 {[%emt 0:00:51]} 34. Ba1 {[%emt 0:00:29]} a4
{[%emt 0:00:23]} 35. Rd1+ {[%emt 0:01:18]} Ke6 {[%emt 0:02:39]} 36. f5+ {
[%emt 0:00:41]} Ke7 {[%emt 0:00:19]} 37. Rc1 {[%emt 0:01:09]} (37. Rb1 $5 {
[%cal Rb1b4]}) 37... Ne5 {[%emt 0:03:07]} 38. Rxc6 {[%emt 0:00:44]} Nxc6 {
[%emt 0:00:03]} 39. Ke3 {[%emt 0:01:00]} b3 {[%emt 0:00:31]} 40. axb3 {[%emt 0:
00:00]} axb3 {[%emt 0:00:04]} 41. Kd3 {[%emt 0:08:13]} Nd8 {[%emt 0:05:12]} 42.
Kc4 {[%emt 0:03:16]} Nf7 {[%emt 0:03:23]} (42... h5 {seems wilder.} 43. h3 hxg4
44. hxg4 b2) 43. Kxb3 {[%emt 0:01:08]} h5 {[%emt 0:00:24]} 44. gxh5 {[%emt 0:
00:00]} Nh6 {[%emt 0:00:03]} 45. Kc4 {[%emt 0:00:15]} Nxf5 {[%emt 0:00:12]} 46.
Kd5 {[%emt 0:00:08]} Kf7 {[%emt 0:00:08]} 47. Ke4 {[%emt 0:00:06]} Nh6 {
[%emt 0:00:12]} (47... Ng7 $1 $11 {remains equal.}) 48. Kf4 {[%emt 0:00:07]}
Kg7 {[%emt 0:00:10]} 49. Bc3 {[%emt 0:00:06]} Kf7 {[%emt 0:00:05]} 50. h3 {
[%emt 0:00:04]} (50. Bd2 $16) 50... Kg7 $11 {[%emt 0:00:05]} 51. Bd2 {[%emt 0:
00:00]} Kh7 {[%emt 0:01:11]} 52. Ke4 {[%emt 0:00:06]} Ng8 {[%emt 0:00:20]} 53.
Kf5 {[%emt 0:00:05]} Nh6+ {[%emt 0:00:02]} ({Black should play} 53... Kg7 $14)
54. Kxf6 $18 {[%emt 0:00:06]} Ng8+ {[%emt 0:00:03]} 55. Kg5 {[%emt 0:00:52]}
Nh6 {[%emt 0:00:04]} 56. Bb4 {[%emt 0:00:14]} Kg7 {[%emt 0:02:54]} 57. Bc3+ {
[%emt 0:03:18]} Kh7 {[%emt 0:00:04]} 58. Kf6 {[%emt 0:03:04]} Ng8+ {[%emt 0:00:
00]} 59. Kf7 {[%emt 0:01:30]} Nh6+ {[%emt 0:00:07] [#]} 60. Ke6 $1 {[%emt 0:00:
00]} Ng8 {[%emt 0:00:43]} 61. Bd2 {[%emt 0:00:42]} Kg7 {[%emt 0:00:20]} 62. Be3
{[%emt 0:02:04]} Nh6 {[%emt 0:00:51]} 63. Bg5 {[%emt 0:01:00]} Ng8 {[%emt 0:00:
00]} 64. Bd8 {[%emt 0:00:51]} Nh6 {[%emt 0:00:24]} 65. Bf6+ {[%emt 0:00:07]}
Kh7 {[%emt 0:00:12]} 66. Bb2 {[%emt 0:00:58]} Ng8 {[%emt 0:00:11]} 67. Kf7 {
[%emt 0:00:42]} Nh6+ {[%emt 0:00:07]} 68. Kf6 {[%emt 0:00:00]} Ng8+ {[%emt 0:
00:00]} 69. Kg5 {[%emt 0:00:34]} Nh6 {[%emt 0:00:04]} 70. Ba3 {[%emt 0:01:00]}
Kg7 {[%emt 0:00:12]} 71. Bb2+ {[%emt 0:00:33]} Kh7 {[%emt 0:00:03]} 72. Bd4 {
[%emt 0:00:22]} Ng8 {[%emt 0:01:13]} 73. Bc5 {[%emt 0:00:54]} Kg7 {[%emt 0:00:
00]} 74. Be3 {[%emt 0:03:04]} Nh6 {[%emt 0:00:12]} 75. Bd4+ {[%emt 0:00:27]}
Kh7 {[%emt 0:00:05]} 76. Kf6 {[%emt 0:00:03]} Ng8+ {[%emt 0:00:12]} 77. Kf7 {
[%emt 0:00:15]} Nh6+ {[%emt 0:00:04] [#]} 78. Ke6 $1 {[%emt 0:00:03]} Ng8 {
[%emt 0:00:10]} 79. Kf5 {[%emt 0:00:29]} Nh6+ {[%emt 0:00:05]} 80. Kg5 {
[%emt 0:00:04]} Ng8 $1 {[%emt 0:00:10]} 81. Be3 {[%emt 0:00:17]} Kg7 {[%emt 0:
00:00]} 82. Bc5 {[%emt 0:00:06]} Nh6 {[%emt 0:00:05]} 83. Bf8+ $2 {[%emt 0:00:
00]} ({Don't do} 83. Bd4+ Kh7 84. Kf6 Ng8+ 85. Kf7 Nh6+ 86. Ke6 Ng8 $18) (83.
Kf4 $18) 83... Kxf8 $11 {[%emt 0:00:05]} 84. Kxh6 {[%emt 0:00:03]} Kg8 {
[%emt 0:00:06]} 85. Kg6 {[%emt 0:00:02]} Kh8 {[%emt 0:00:06]} 86. h6 {[%emt 0:
00:00]} Kg8 {[%emt 0:00:03]} 87. h4 {[%emt 0:00:03]} Kh8 {[%emt 0:00:04]} 88.
h5 {[%emt 0:00:03]} Kg8 {[%emt 0:00:04]} 89. h7+ {[%emt 0:00:03]} Kh8 {[%emt 0:
00:00]} 90. Kh6 {[%emt 0:00:02]} 1/2-1/2